{"text_format":"2","workbook":"xlsx","n_sheets":2,"sheets":["Shot List Template","Template Options"],"not_rendered":{"charts":0,"images":1,"macros":0,"external_links":0,"defined_names":2,"comments":2,"pivot_tables":0},"unopened":[],"bounds":{"document_bytes":16777216,"sheet_cells":100000,"run_cost":"one","rows_first":2000,"rows_last":500,"rows_between":2000,"halvings":0,"cell_chars":16384,"cell_head_chars":4096},"cells_cut":0,"cells_raw":0,"read":"whole","date_system":"1900"}

{"sheet":"Shot List Template","index":0,"n_rows":100,"n_cols":17,"rows_kept":100,"cut":false,"hidden":false,"merged":[[35,11,35,15],[39,11,39,15],[38,11,38,15],[36,11,36,15],[37,11,37,15],[20,11,20,15],[21,11,21,15],[49,11,49,15],[50,11,50,15],[51,11,51,15],[46,11,46,15],[47,11,47,15],[48,11,48,15],[44,11,44,15],[45,11,45,15],[40,11,40,15],[43,11,43,15],[41,11,41,15],[42,11,42,15],[55,11,55,15],[54,11,54,15],[23,11,23,15],[18,11,18,15],[19,11,19,15],[32,11,32,15],[58,11,58,15],[29,11,29,15],[22,11,22,15],[75,11,75,15],[74,11,74,15],[78,11,78,15],[79,11,79,15],[80,11,80,15],[59,11,59,15],[60,11,60,15],[68,11,68,15],[69,11,69,15],[76,11,76,15],[67,11,67,15],[77,11,77,15],[85,11,85,15],[86,11,86,15],[88,11,88,15],[87,11,87,15],[84,11,84,15],[82,11,82,15],[83,11,83,15],[81,11,81,15],[99,2,99,15],[99,0,99,1],[96,11,96,15],[98,11,98,15],[97,11,97,15],[89,11,89,15],[90,11,90,15],[91,11,91,15],[92,11,92,15],[93,11,93,15],[95,11,95,15],[94,11,94,15],[2,11,2,15],[5,11,5,15],[3,11,3,15],[4,11,4,15],[6,11,6,15],[7,11,7,15],[13,11,13,15],[14,11,14,15],[10,11,10,15],[9,11,9,15],[17,11,17,15],[16,11,16,15],[25,0,25,1],[25,2,25,15],[27,1,27,6],[12,11,12,15],[24,11,24,15],[15,11,15,15],[0,1,0,16],[28,3,28,5],[1,3,1,5],[70,0,70,1],[73,3,73,5],[72,1,72,6],[64,3,64,5],[61,0,61,1],[63,1,63,6],[56,11,56,15],[57,11,57,15],[52,11,52,15],[53,11,53,15],[33,11,33,15],[34,11,34,15],[31,11,31,15],[30,11,30,15],[65,11,65,15],[66,11,66,15],[70,2,70,15],[61,2,61,15],[11,11,11,15],[8,11,8,15]]}
[null,"SHOT LIST · CROOKED VENGEANCE"]
["SCENE # :  ",1.0,"SCENE:","INT. HOUSE ROBBERY - NIGHT",null,null,"PAGES:","1 1/8 - 1 5/8"]
["✓","SETUP #","SHOT #","SUBJECT","SHOT SIZE","CAMERA","ANGLE","MOVEMENT","EQUIPMENT","LENS","SOUND","Description",{"$nulls":4},"Rate"]
[null,1.0,null,"Man","MCU","C100","High Angle","Tilt","Sticks / Tripod","35mm","Boom (Shotgun)","We see a man lying in bed sleeping."]
[null,{"$f":"sum(B4+1)","v":2},"A","Bernie","MS","C100","Low Angle","Rack Focus","Sticks / Tripod","24mm (macro)","Boom (Shotgun)","We see BERNIE levering open a window from the ext of the house"]
[null,3,"B","Man","MCU","C100","High Angle","Rack Focus","Sticks / Tripod","50mm","Boom (Shotgun)","The man, turns over."]
[null,4,"C","Silver Tray","CU","C100","High Angle","Pan","Sticks / Tripod","55mm - 250mm","Boom (Shotgun)","We see a silver tray being grabbed."]
[null,5,"D","Gold Watch","CU","C100","High Angle","Tilt","Sticks / Tripod","55mm - 250mm","Boom (Shotgun)","We see watch being grabbed."]
[null,6,"E","Jewellery Box","CU","600D","High Angle","Jib","Jib Arm","35mm","Boom (Shotgun)","We jib up, as panning down, to see a jewellery box being raded."]
[null,7,"F","Gold Ring","CU","C100","High Angle","Tilt","Sticks / Tripod","55mm - 250mm","Boom (Shotgun)","We see a ring being taken as we tilt."]
[null,8,"G","Mobile Phone","CU","C100","High Angle","Pan","Sticks / Tripod","55mm - 250mm","Boom (Shotgun)","We see a mobile phone being picked up."]
[null,9,"H","Painting","MS","C100","Eyelevel","Dolly","Dolly","35mm","Boom (Shotgun)","We see a painting being lifted up."]
[null,10,"I","Silver Dog Statue","CU","C100","Eyelevel","Static","Sticks / Tripod","50mm","Boom (Shotgun)","We see a silver dog statue being grabbed."]
[null,11,"J","Small Sports Bag","CU","C100","Eyelevel","Handheld","Handheld","50mm","Boom (Shotgun)","We see an item being put into the small sports bag."]
[null,12,"K","Wallet","CU","C100","Eyelevel","Zoom","Sticks / Tripod","50mm","Boom (Shotgun)","We see a wallet opened, the money is removed and taken."]
[null,13,"L","Bernie","MS","C100","Low Angle","Handheld","Handheld","35mm","Boom (Shotgun)","Bernie drops the silver tray walking up the stairs, making a loud sound."]
[null,14,"M","Man","MCU","C100","High Angle","Tilt","Sticks / Tripod","35mm","Boom (Shotgun)","We see the man start to wake."]
[null,15,"N","Man","MS","C100","Eyelevel","Handheld","Handheld","24mm (macro)","Boom (Shotgun)","The man gets out of bed and walks out of his bedroom, the camera follows."]
[null,16,"O","Bernie","MS","C100","High Angle","Static","Sticks / Tripod","24mm (macro)","Boom (Shotgun)","We see Bernie frozen at the top of the stairs, with the man coming out of his bedroom. The man turns the light on."]
[null,17,"P","Light Switch","CU","C100","Low Angle","Static","Sticks / Tripod","55mm - 250mm","Boom (Shotgun)","We see the lightswitch turned on by the man."]
[null,18,"Q","Bernie","W","C100","Low Angle","Tracking Shot","Sticks / Tripod","24mm (macro)","Boom (Shotgun)","We see Bernie sprint down the stairs."]
[null,19,"R","Bernie","MS","C100","Eyelevel","Tracking Shot","Handheld","35mm","Boom (Shotgun)","We see Bernie sprint out of the front door and into a getaway vehicle, tracking all the way up to the door."]
[null,20,"S","Car","W","Drone","Extreme High","Jib","Drone","TBC","Boom (Shotgun)","The car speeds into the distance."]
[null,21,"T","Bernie & Driver","MS","C100","Eyelevel","Handheld","Handheld","24mm (macro)","Boom (Shotgun)","We see the driver and Bernie in the front passenger's seat, holding the bag."]
[null,22,"U","Bag","CU","C100","Eyelevel","Handheld","Handheld","35mm","Boom (Shotgun)","We focus on the bag."]
["SCENE NOTES:"]
[]
[{"$f":"IMAGE(\"https://www.studiobinder.com/wp-content/uploads/2016/07/studiobinder-white-symbol.png\", 4, 26, 27.51)","v":""},"SHOT LIST · CROOKED VENGEANCE"]
["SCENE # :  ",2.0,"SCENE:","EXT. MARK'S HOUSE - DAY",null,null,"PAGES:"]
["✓","SETUP #","SHOT #","SUBJECT","SHOT SIZE","CAMERA","ANGLE","MOVEMENT","EQUIPMENT","LENS","SOUND","Description",{"$nulls":4},"Rate"]
[null,22.0,null,"Bag","CU","C100","Eyelevel","Handheld","Handheld","35mm","Boom (Shotgun)","We see the bag held by Bernie, walking down a street."]
[null,23.0,"A","Bernie","W","C100","Eyelevel","Static","Sticks / Tripod","24mm (macro)","Boom (Shotgun)","Bernie walks up the driveway and to the door of a quiet, middle-class home. Bernie knocks on the door and waits until a tall, brown haired man in his 20's opens the door with a warm greeting."]
[null,24.0,"B","Bernie","MS (OTS)","C100","Eyelevel","Rack Focus","Sticks / Tripod","35mm","Boom (Omni)","Bernie knocks on the door and waits until a tall, brown haired man in his 20's opens the door with a warm greeting."]
[null,25.0,"C","Doorbell","CU","C100","Eyelevel","Static","Sticks / Tripod","55mm - 250mm","Boom (Shotgun)","We see Bernie press the doorbell."]
[null,26.0,"D","Mark/Bernie","MS (OTS)","C100","Eyelevel","Handheld","Handheld","35mm","Boom (Omni)","Bernie steps in the house with Mark as they are talking."]
[null,27.0,"E","Mark/Bernie","MS","C100","Eyelevel","Pan","Sticks / Tripod","24mm (macro)","Boom (Omni)","Bernie steps into the house with Mark and into the kitchen."]
[null,28.0,"F","Bottle of whiskey","CU","C100","High Angle","Static","Sticks / Tripod","55mm - 250mm","Boom (Shotgun)","We see a bottle of whiskey pulled put of a cupboard."]
[null,29.0,"G","Tumbler glass","CU","C100","High Angle","Static","Sticks / Tripod","55mm - 250mm","Boom (Shotgun)","We see two ice cubes drop into the tumbler glass."]
[null,30.0,"H","Tumbler glass","CU","C100","High Angle","Static","Sticks / Tripod","55mm - 250mm","Boom (Shotgun)","We see golden coloured liquid flow into a tumbler glass."]
[null,31.0,"I","Bernie","ECU","C100","Eyelevel","Static","Sticks / Tripod","55mm - 250mm","Boom (Shotgun)","We see Bernie take a sip of the whiskey."]
[null,32.0,"J","Mark","ECU","C100","Eyelevel","Static","Sticks / Tripod","55mm - 250mm","Boom (Shotgun)","We see Mark take a sip of the whiskey."]
[null,33.0,"K","Bernie","MS","BMPCC","Eyelevel","Jib","Jib Arm","10mm - 22mm","Boom (Shotgun)","We see Bernie sit opposite Mark on the sofa."]
[null,34.0,"L","Mark","MS","C100","Eyelevel","Tracking Shot","Sticks / Tripod","35mm","Boom (Omni)","Mark mastershot"]
[null,35.0,"M","Bernie","MS","C100","Eyelevel","Tracking Shot","Sticks / Tripod","35mm","Boom (Omni)","First Bernie mastershot"]
[null,36.0,"N","Small sportsbag","CU","C100","High Angle","Static","Sticks / Tripod","55mm - 250mm","Boom (Shotgun)","We see Bernie open the small sportsbag and take out loot."]
[null,37.0,"O","Bernie/Mark","MS","C100","Eyelevel","Static","Sticks / Tripod","24mm (macro)","Boom (Omni)","Master two shot"]
[null,38.0,"P","Jeweller's eyepiece","CU","C100","High Angle","Static","Sticks / Tripod","50mm","Boom (Shotgun)","Mark turns around to grab a jeweller's eyepiece"]
[null,39.0,"Q","Mark","CU","C100","Eyelevel","Static","Sticks / Tripod","50mm","Boom (Shotgun)","Mark begins and continues to inspect a gold ring."]
[null,40.0,"R","Gold ring","CU","C100","High Angle","Static","Sticks / Tripod","50mm","Boom (Shotgun)","Mark turns around again to plop the ring on a digital scale."]
[null,41.0,"S","Mark's phone","CU","C100","High Angle","Static","Sticks / Tripod","50mm","Boom (Shotgun)","Mark makes a calculation on his phone."]
[null,42.0,"T","Bernie/Mark","MS","C100","High Angle","Tracking Shot","Sticks / Tripod","35mm","Boom (Omni)","Bernie begins to stand and move towards Mark."]
[null,43.0,"U","Gold ring","CU","C100","High Angle","Static","Sticks / Tripod","50mm","Boom (Shotgun)","Mark puts the ring on a small piece of paper and notes down it's pound value."]
[null,44.0,"V","Bernie/Mark","CU","C100","Eyelevel","Static","Sticks / Tripod","50mm","Boom (Omni)","When Mark turns around to reply to Bernie he is already stood right next to Mark's face."]
[null,45.0,"W","Bernie/Mark","MS","C100","Eyelevel","Static","Sticks / Tripod","35mm","Boom (Omni)","From line: 'Just below scrap value' to 'Nah had to get out quick didn't I?'"]
[null,46.0,"X","Mark's hands","CU","C100","High Angle","Tracking Shot","Sticks / Tripod","50mm","Boom (Shotgun)","Mark moves on to the next ring. + Mark values the last ring and starts to count up a wad of cash from a red safe."]
[null,47.0,"Y","Bernie","MS","C100","Eyelevel","Tracking Shot","Sticks / Tripod","35mm","Boom (Omni)","Second Bernie mastershot"]
[null,48.0,"Z","Cash","CU","C100","High Angle","Tracking Shot","Handheld","50mm","Boom (Shotgun)","Mark hands over the cash."]
[null,49.0,"AA","Paper bag","CU","C100","High Angle","Static","Sticks / Tripod","50mm","Boom (Shotgun)","Mark grabs a paper bag from the kitchen counter."]
[null,50.0,"AB","Bernie/Mark","MS","C100","Eyelevel","Handheld","Handheld","35mm","Boom (Omni)","Mark hands over the cash and the two start walking towards the door."]
[null,51.0,"AC","Bernie","W","C100","Low Angle","Static","Sticks / Tripod","10mm - 22mm","Boom (Omni)","Bernie starts to turn his back and opens the door."]
[null,52.0,"AD","Mark","MS","C100","Low Angle","Static","Sticks / Tripod","35mm","Boom (Omni)","Mark: 'Hey, what am I?'"]
["SCENE NOTES:"]
[]
[{"$f":"IMAGE(\"https://www.studiobinder.com/wp-content/uploads/2016/07/studiobinder-white-symbol.png\", 4, 26, 27.51)","v":""},"SHOT LIST · CROOKED VENGEANCE"]
["SCENE # :  ",3.0,"SCENE:","INT. MARK'S CAR - DAY",null,null,"PAGES:"]
["✓","SETUP #","SHOT #","SUBJECT","SHOT SIZE","CAMERA","ANGLE","MOVEMENT","EQUIPMENT","LENS","SOUND","Description",{"$nulls":4},"Rate"]
[null,53.0,null,"Bernie","MS","C100","Eyelevel","Handheld","Handheld","24mm (macro)","Boom (Shotgun)","We see Bernie driving in his car with the paper bag on the passenger seat."]
[null,54.0,"A","Paper bag","CU","C100","High Angle","Handheld","Handheld","50mm","Boom (Shotgun)","While driving, Bernie takes out a black pistol from the paper bag, he holds it up. Bernie puts the pistol in the glove box."]
[null,55.0,"B","Bernie's car","MS","C100","Eyelevel","Handheld","Handheld","35mm","Boom (Shotgun)","We see Bernie in his car as we dolly past, panning."]
[null,56.0,"C","Bernie's hands","CU","C100","Eyelevel","Handheld","Handheld","50mm","Boom (Shotgun)","We see Bernie's hands on the wheel/changing gear."]
["SCENE NOTES:"]
[]
[{"$f":"IMAGE(\"https://www.studiobinder.com/wp-content/uploads/2016/07/studiobinder-white-symbol.png\", 4, 26, 27.51)","v":""},"SHOT LIST · CROOKED VENGEANCE"]
["SCENE # :  ",3.5,"SCENE:","EXT/INT. DRUG DEALER'S HOUSE - NIGHT",null,null,"PAGES:"]
["✓","SETUP #","SHOT #","SUBJECT","SHOT SIZE","CAMERA","ANGLE","MOVEMENT","EQUIPMENT","LENS","SOUND","Description",{"$nulls":4},"Rate"]
[null,57.0,null,"Bernie/Roger","W","C100","Eyelevel","Tracking Shot","Sticks / Tripod","24mm (macro)","Boom (Shotgun)","We see Bernie and Roger walking down a dimly lit street and turn into a house."]
[null,58.0,"A","Door/Bernie","CU","C100","Eyelevel","Handheld","Handheld","50mm","Boom (Shotgun)","We see Roger first and then Bernie walk through the slightly open door."]
[null,59.0,"B","Bernie/Roger","MS","C100","Eyelevel","Static","Sticks / Tripod","35mm","Boom (Omni)","From line: 'Ay this ain't right' to They continue into the house."]
[null,60.0,"C","Bernie","CU","C100","High Angle","Static","Sticks / Tripod","50mm","Boom (Omni)","Bernie stares at Roger turning his head making an anxious annoyed look."]
[null,61.0,"D","Bernie/Roger","MS","C100","Eyelevel","Handheld","Handheld","35mm","Boom (Omni)","They enter the kitchen, which is littered with drug paraphanelia, drugs and cash."]
[null,62.0,"E","Drugs/Cash","CU","600D","High Angle","Steadicam","Steadicam","50mm","Boom (Omni)","Littered with drug paraphanelia, drugs and cash."]
[null,63.0,"F","Bernie/Drugs/Cash","MS","C100","Eyelevel","Handheld","Handheld","35mm","Boom (Omni)","Bernie immediately starts stuffing bags with cocaine and cash."]
[null,64.0,"G","Bernie/Roger/Dark Figure","MS","C100","High Angle","Handheld","Handheld","35mm","Boom (Omni)","Roger stands still and an eerie vibe fills the room when a large figure slowly walks towards Bernie from behind."]
[null,65.0,"H","Bernie/Drug Dealer","MS","C100","High Angle","Handheld","Handheld","35mm","Boom (Omni)","Bernie turns around to find a very tall angry drug dealer, who immediately punches Bernie in the face and knocks him again to the ground."]
[null,66.0,"I","Bernie","MS","C100","High Angle","Handheld","Handheld","35mm","Boom (Omni)","Roger then joins in beating and kicking Bernie, who helplessly tries to stand and fight."]
[null,67.0,"J","Bernie","MS","C100","High Angle","Handheld","Handheld","35mm","Boom (Omni)","Bernie becomes swollen with bruises and blood pours from his nose."]
[null,68.0,"K","Bernie","MS","C100","High Angle","Handheld","Handheld","35mm","Boom (Omni)","The two take each end of Bernie's batted body; carrying him outside and shoving him into the boot of the getway car."]
[null,69.0,"L","Bernie","MS","C100","High Angle","Handheld","Handheld","35mm","Boom (Omni)","Lines: \"What the fuck's going on?\" and \"Nothing, just keep quiet and I'll be back\"."]
[null,70.0,"M","Bernie","MS","C100","High Angle","Handheld","Handheld","35mm","Boom (Omni)","Roger runs back into the house with the drug dealer and raises a gun to his head. Bang!"]
[null,71.0,"N","Bernie","MS","C100","High Angle","Handheld","Handheld","35mm","Boom (Omni)","The dealer is lying on the floor and Roger proceeds to bag every valuable item in sight, running back into the car."]
[null,72.0,"O","Bernie","MS","C100","High Angle","Handheld","Handheld","35mm","Boom (Omni)","Lines: \"You're a fucking idiot, scumbag.\" and \"Do your damn job and drive!\""]
[null,73.0,"P","Bernie","MS","C100","High Angle","Handheld","Handheld","35mm","Boom (Omni)","The car speeds off."]
[null,74.0,"Q","Bernie","MS","C100","High Angle","Handheld","Handheld","35mm","Boom (Omni)","We then see Bernie being dragged out of the boot and on to a street corner."]
[null,75.0,"R","Bernie","MS","C100","High Angle","Handheld","Handheld","35mm","Boom (Omni)","Line: \"Sorry mate, I couldn't resist.\""]
[null,76.0,"S","Bernie","MS","C100","High Angle","Handheld","Handheld","35mm","Boom (Omni)","Scene continues"]
[null,77.0,"T","Bernie","MS","C100","High Angle","Handheld","Handheld","35mm","Boom (Omni)","Scene continues"]
[null,78.0,"U","Bernie","MS","C100","High Angle","Handheld","Handheld","35mm","Boom (Omni)","Scene continues"]
[null,79.0,"V","Bernie","MS","C100","High Angle","Handheld","Handheld","35mm","Boom (Omni)","Scene continues"]
[null,80.0,"W","Bernie","MS","C100","High Angle","Handheld","Handheld","35mm","Boom (Omni)","Scene continues"]
["SCENE NOTES:"]

{"sheet":"Template Options","index":1,"n_rows":15,"n_cols":7,"rows_kept":15,"cut":false,"hidden":false,"merged":[]}
["SHOT SIZE","CAMERA","ANGLE","MOVEMENT","EQUIPMENT","LENS","SOUND"]
["CU","C100","Eyelevel","Static","Handheld","10mm - 22mm","Boom (Shotgun)"]
["MCU","BMPCC","Low Angle","Pan","Sticks / Tripod","24mm (macro)","Boom (Omni)"]
["ECU","600D","High Angle","Tilt","Jib Arm","35mm","Lav"]
["MS","Drone","Extreme Low","Jib","Dolly","50mm","Lav & Boom"]
["FS",null,"Extreme High","Tilt","Steadicam","24mm - 105mm","Lavs & Boom"]
["LS",null,"Dutch Tilt","Dolly","Movi","55mm - 250mm","MOS"]
["MLS",null,"POV","Truck","Technocrane","TBC"]
["ELS",null,null,"Arc","Condor"]
["W",null,null,"Steadicam","Cherry Picker"]
["CU (OTS)",null,null,"Handheld","Camera Car"]
["MCU (OTS)",null,null,"Crane / Boom","Drone"]
["ECU (OTS)",null,null,"Tracking Shot","Helicam"]
["MS (OTS)",null,null,"Zoom"]
[null,null,null,"Rack Focus"]